fUST/lending_fUST_20260506
["ID","MTS","AMOUNT","RATE_DAILY","PERIOD"]
[421639526,1778004641000,-500.0,0.00012328,2]
[421639523,1778004641000,-500.0,0.00012328,2]
[421639532,1778004641000,-500.0,0.00012328,2]
[421639534,1778004641000,-500.0,0.00012328,2]
[421639536,1778004641000,-832.65,0.00012328,2]
[421639537,1778004641000,-500.0,0.00012328,2]
[421639565,1778004641000,-500.0,0.00012328,2]
[421639611,1778004641000,-828.44,0.00012328,2]
[421639571,1778004641000,-2975.7,0.00012328,2]
[421639600,1778004641000,-500.0,0.00012328,2]
[421639604,1778004641000,-280.61486786,0.00012328,2]
[421639605,1778004641000,-500.0,0.00012328,2]
[421639607,1778004641000,-500.0,0.00012328,2]
[421639609,1778004641000,-500.0,0.00012328,2]
[421639610,1778004641000,-500.0,0.00012328,2]
[421639608,1778004641000,-500.0,0.00012328,2]
[421639628,1778004641000,-500.0,0.00012328,2]
[421639619,1778004641000,-500.0,0.00012328,2]
[421639618,1778004641000,-2184.25,0.00012328,2]
[421639612,1778004641000,-500.0,0.00012328,2]
[421639615,1778004641000,-650.37,0.00012328,2]
[421639614,1778004641000,-709.49,0.00012328,2]
[421639602,1778004641000,-3132.03,0.00012328,2]
[421639616,1778004641000,-641.48,0.00012328,2]
[421639620,1778004641000,-500.0,0.00012328,2]
[421639621,1778004641000,-539.15,0.00012328,2]
[421639631,1778004641000,-500.0,0.00012328,2]
[421639623,1778004641000,-4138.42,0.00012328,2]
[421639625,1778004641000,-1723.32,0.00012328,2]
[421639626,1778004641000,-500.0,0.00012328,2]
[421639632,1778004641000,-500.0,0.00012328,2]
[421639622,1778004641000,-9909.63,0.00012328,2]
[421639624,1778004641000,-503.95,0.00012328,2]
[421639630,1778004641000,-967.66,0.00012328,2]
[421639627,1778004641000,-5436.77,0.00012328,2]
[421639629,1778004641000,-500.0,0.00012328,2]
[421639567,1778004641000,-500.0,0.00012328,2]
[421639613,1778004641000,-500.0,0.00012328,2]
[421639603,1778004641000,-9933.35,0.00012328,2]
[421639617,1778004641000,-2328.11,0.00012328,2]
[421639598,1778004641000,-500.0,0.00012328,2]
[421639581,1778004641000,-500.0,0.00012328,2]
[421639601,1778004641000,-500.0,0.00012328,2]
[421639573,1778004641000,-500.0,0.00012328,2]
[421639570,1778004641000,-500.0,0.00012328,2]
[421639575,1778004641000,-500.0,0.00012328,2]
[421639578,1778004641000,-2518.16,0.00012328,2]
[421639574,1778004641000,-338.4433984,0.00012328,2]
[421639576,1778004641000,-1703.09,0.00012328,2]
[421639572,1778004641000,-2826.07,0.00012328,2]
[421639577,1778004641000,-500.0,0.00012328,2]
[421639580,1778004641000,-1303.68,0.00012328,2]
[421639582,1778004641000,-3131.29,0.00012328,2]
[421639587,1778004641000,-531.26,0.00012328,2]
[421639583,1778004641000,-500.0,0.00012328,2]
[421639584,1778004641000,-500.0,0.00012328,2]
[421639579,1778004641000,-500.0,0.00012328,2]
[421639595,1778004641000,-49277.38,0.00012328,2]
[421639585,1778004641000,-500.0,0.00012328,2]
[421639599,1778004641000,-7896.73,0.00012328,2]
[421639606,1778004641000,-500.0,0.00012328,2]
[421639596,1778004641000,-1957.59,0.00012328,2]
[421639592,1778004641000,-638.37109619,0.00012328,2]
[421639591,1778004641000,-500.0,0.00012328,2]
[421639594,1778004641000,-224.51091186,0.00012328,2]
[421639597,1778004641000,-500.0,0.00012328,2]
[421639588,1778004641000,-500.0,0.00012328,2]
[421639590,1778004641000,-9189.25,0.00012328,2]
[421639593,1778004641000,-682.8,0.00012328,2]
[421639586,1778004641000,-4002.42,0.00012328,2]
[421639589,1778004641000,-500.0,0.00012328,2]
[421639681,1778004642000,-500.0,0.00012328,2]
[421639698,1778004642000,-445.202766,0.0001237,2]
[421639694,1778004642000,-196.99,0.00012329,2]
[421639697,1778004642000,-1559.0,0.0001233,2]
[421639668,1778004642000,-500.0,0.00012328,2]
[421639678,1778004642000,-500.0,0.00012328,2]
[421639671,1778004642000,-500.0,0.00012328,2]
[421639680,1778004642000,-3967.36,0.00012328,2]
[421639672,1778004642000,-500.0,0.00012328,2]
[421639665,1778004642000,-612.15,0.00012328,2]
[421639667,1778004642000,-2168.88,0.00012328,2]
[421639695,1778004642000,-164.16,0.00012329,2]
[421639669,1778004642000,-500.0,0.00012328,2]
[421639684,1778004642000,-705.87,0.00012329,2]
[421639705,1778004642000,-155.0,0.00012481,2]
[421639693,1778004642000,-236.39,0.00012329,2]
[421639685,1778004642000,-588.22,0.00012329,2]
[421639696,1778004642000,-820.84,0.00012329,2]
[421639688,1778004642000,-490.18,0.00012329,2]
[421639690,1778004642000,-408.49,0.00012329,2]
[421639691,1778004642000,-340.41,0.00012329,2]
[421639701,1778004642000,-537.6845,0.0001237,2]
[421639699,1778004642000,-537.6845,0.0001237,2]
[421639702,1778004642000,-151.84620433,0.0001237,2]
[421639700,1778004642000,-162.380719,0.0001237,2]
[421639703,1778004642000,-557.5788265,0.00012425,2]
[421639706,1778004642000,-599.60298507,0.00012535,2]
[421639707,1778004642000,-621.78829552,0.0001259,2]
[421639666,1778004642000,-500.0,0.00012328,2]
[421639692,1778004642000,-283.67,0.00012329,2]
[421639676,1778004642000,-500.0,0.00012328,2]
[421639635,1778004642000,-2022.58,0.00012328,2]
[421639662,1778004642000,-500.0,0.00012328,2]
[421639633,1778004642000,-1641.32,0.00012328,2]
[421639711,1778004642000,-229.0582,0.00012602,2]
[421639634,1778004642000,-2702.55,0.00012328,2]
[421639636,1778004642000,-579.9422032,0.00012328,2]
[421639637,1778004642000,-500.0,0.00012328,2]
[421639645,1778004642000,-151.32330022,0.00012328,2]
[421639647,1778004642000,-500.0,0.00012328,2]
[421639646,1778004642000,-2790.2,0.00012328,2]
[421639639,1778004642000,-775.23,0.00012328,2]
[421639638,1778004642000,-500.0,0.00012328,2]
[421639641,1778004642000,-2207.58,0.00012328,2]
[421639643,1778004642000,-604.27,0.00012328,2]
[421639644,1778004642000,-805.28,0.00012328,2]
[421639640,1778004642000,-500.0,0.00012328,2]
[421639674,1778004642000,-500.0,0.00012328,2]
[421639642,1778004642000,-500.0,0.00012328,2]
[421639661,1778004642000,-2261.24,0.00012328,2]
[421639660,1778004642000,-500.0,0.00012328,2]
[421639650,1778004642000,-500.0,0.00012328,2]
[421639651,1778004642000,-500.0,0.00012328,2]
[421639648,1778004642000,-500.0,0.00012328,2]
[421639658,1778004642000,-500.0,0.00012328,2]
[421639652,1778004642000,-500.0,0.00012328,2]
[421639656,1778004642000,-500.0,0.00012328,2]
[421639653,1778004642000,-9106.13,0.00012328,2]
[421639655,1778004642000,-1164.54,0.00012328,2]
[421639654,1778004642000,-4038.2,0.00012328,2]
[421639657,1778004642000,-518.69,0.00012328,2]
[421639663,1778004642000,-500.0,0.00012328,2]
[421639664,1778004642000,-1174.1,0.00012328,2]
[421639649,1778004642000,-9457.12,0.00012328,2]
[421639708,1778004642000,-500.0,0.00012602,2]
[421639659,1778004642000,-621.12258455,0.00012328,2]
[421639709,1778004642000,-196.4647,0.00012602,2]
[421639747,1778004642000,-670.06,0.00012602,2]
[421639745,1778004642000,-560.86,0.00012602,2]
[421639744,1778004642000,-500.0,0.00012602,2]
[421639748,1778004642000,-500.0,0.00012602,2]
[421639746,1778004642000,-512.24,0.00012602,2]
[421639749,1778004642000,-500.0,0.00012602,2]
[421639755,1778004642000,-1020.86,0.00012602,2]
[421639756,1778004642000,-500.0,0.00012602,2]
[421639765,1778004642000,-509.5,0.00012602,2]
[421639767,1778004642000,-500.0,0.00012602,2]
[421639757,1778004642000,-500.0,0.00012602,2]
[421639759,1778004642000,-500.0,0.00012602,2]
[421639766,1778004642000,-479.51527157,0.00012602,2]
[421639760,1778004642000,-879.89,0.00012602,2]
[421639743,1778004642000,-500.0,0.00012602,2]
[421639764,1778004642000,-500.0,0.00012602,2]
[421639761,1778004642000,-500.0,0.00012602,2]
[421639762,1778004642000,-500.0,0.00012602,2]
[421639758,1778004642000,-500.0,0.00012602,2]
[421639768,1778004642000,-500.0,0.00012602,2]
[421639769,1778004642000,-500.0,0.00012602,2]
[421639770,1778004642000,-579.11,0.00012602,2]
[421639772,1778004642000,-1308.67,0.00012602,2]
[421639771,1778004642000,-500.0,0.00012602,2]
[421639773,1778004642000,-500.0,0.00012602,2]
[421639778,1778004642000,-500.0,0.00012602,2]
[421639774,1778004642000,-500.0,0.00012602,2]
[421639777,1778004642000,-2295.95,0.00012602,2]
[421639776,1778004642000,-500.0,0.00012602,2]
[421639710,1778004642000,-4988.8418,0.00012602,2]
[421639763,1778004642000,-500.0,0.00012602,2]
[421639754,1778004642000,-631.37,0.00012602,2]
[421639775,1778004642000,-742.04,0.00012602,2]
[421639753,1778004642000,-726.73,0.00012602,2]
[421639741,1778004642000,-500.0,0.00012602,2]
[421639704,1778004642000,-578.20924308,0.0001248,2]
[421639713,1778004642000,-500.0,0.00012602,2]
[421639723,1778004642000,-500.0,0.00012602,2]
[421639712,1778004642000,-500.0,0.00012602,2]
[421639716,1778004642000,-1141.04,0.00012602,2]
[421639725,1778004642000,-500.0,0.00012602,2]
[421639715,1778004642000,-500.0,0.00012602,2]
[421639717,1778004642000,-500.0,0.00012602,2]
[421639719,1778004642000,-500.0,0.00012602,2]
[421639722,1778004642000,-647.02128219,0.00012602,2]
[421639720,1778004642000,-500.0,0.00012602,2]
[421639721,1778004642000,-526.5,0.00012602,2]
[421639718,1778004642000,-500.0,0.00012602,2]
[421639727,1778004642000,-500.0,0.00012602,2]
[421639724,1778004642000,-551.29594725,0.00012602,2]
[421639738,1778004642000,-500.0,0.00012602,2]
[421639752,1778004642000,-500.0,0.00012602,2]
[421639737,1778004642000,-500.0,0.00012602,2]
[421639750,1778004642000,-500.0,0.00012602,2]
[421639736,1778004642000,-500.0,0.00012602,2]
[421639730,1778004642000,-514.43,0.00012602,2]
[421639732,1778004642000,-500.0,0.00012602,2]
[421639742,1778004642000,-500.0,0.00012602,2]
[421639735,1778004642000,-801.14,0.00012602,2]
[421639740,1778004642000,-1270.66,0.00012602,2]
[421639726,1778004642000,-569.1,0.00012602,2]
[421639731,1778004642000,-500.0,0.00012602,2]
[421639728,1778004642000,-500.0,0.00012602,2]
[421639751,1778004642000,-500.0,0.00012602,2]
[421639729,1778004642000,-500.0,0.00012602,2]
[421639733,1778004642000,-500.0,0.00012602,2]
[421639813,1778004643000,-500.0,0.00012602,2]
[421639818,1778004643000,-500.0,0.00012602,2]
[421639816,1778004643000,-500.0,0.00012602,2]
[421639815,1778004643000,-500.0,0.00012602,2]
[421639814,1778004643000,-3436.73,0.00012602,2]
[421639804,1778004643000,-500.0,0.00012602,2]
[421639822,1778004643000,-500.0,0.00012602,2]
[421639824,1778004643000,-500.0,0.00012602,2]
[421639820,1778004643000,-679.76,0.00012602,2]
[421639825,1778004643000,-500.0,0.00012602,2]
[421639819,1778004643000,-500.0,0.00012602,2]
[421639817,1778004643000,-500.0,0.00012602,2]
[421639828,1778004643000,-500.0,0.00012602,2]
[421639823,1778004643000,-1561.42,0.00012602,2]
[421639826,1778004643000,-500.0,0.00012602,2]
[421639837,1778004643000,-1796.16,0.00012602,2]
[421639839,1778004643000,-500.0,0.00012602,2]
[421639829,1778004643000,-500.0,0.00012602,2]
[421639827,1778004643000,-500.0,0.00012602,2]
[421639838,1778004643000,-840.22,0.00012602,2]
[421639834,1778004643000,-500.0,0.00012602,2]
[421639831,1778004643000,-504.84,0.00012602,2]
[421639807,1778004643000,-1004.89,0.00012602,2]
[421639830,1778004643000,-1054.86,0.00012602,2]
[421639821,1778004643000,-3599.53,0.00012602,2]
[421639805,1778004643000,-406.91374206,0.00012602,2]
[421639789,1778004643000,-666.91,0.00012602,2]
[421639808,1778004643000,-500.0,0.00012602,2]
[421639832,1778004643000,-500.0,0.00012602,2]
[421639782,1778004643000,-525.22,0.00012602,2]
[421639780,1778004643000,-674.6,0.00012602,2]
[421639779,1778004643000,-1225.99,0.00012602,2]
[421639784,1778004643000,-500.0,0.00012602,2]
[421639786,1778004643000,-500.0,0.00012602,2]
[421639788,1778004643000,-500.0,0.00012602,2]
[421639785,1778004643000,-500.0,0.00012602,2]
[421639791,1778004643000,-500.0,0.00012602,2]
[421639790,1778004643000,-500.0,0.00012602,2]
[421639787,1778004643000,-877.01,0.00012602,2]
[421639793,1778004643000,-500.0,0.00012602,2]
[421639809,1778004643000,-500.0,0.00012602,2]
[421639792,1778004643000,-500.0,0.00012602,2]
[421639794,1778004643000,-1762.36,0.00012602,2]
[421639798,1778004643000,-500.0,0.00012602,2]
[421639796,1778004643000,-500.0,0.00012602,2]
[421639797,1778004643000,-500.0,0.00012602,2]
[421639799,1778004643000,-500.0,0.00012602,2]
[421639800,1778004643000,-500.0,0.00012602,2]
[421639810,1778004643000,-879.25,0.00012602,2]
[421639801,1778004643000,-500.0,0.00012602,2]
[421639812,1778004643000,-500.88,0.00012602,2]
[421639802,1778004643000,-500.0,0.00012602,2]
[421639811,1778004643000,-500.0,0.00012602,2]
[421639803,1778004643000,-500.0,0.00012602,2]
[421639795,1778004643000,-999.82,0.00012602,2]
[421639833,1778004643000,-555.48063581,0.00012602,2]
[421639844,1778004643000,-1565.82,0.00012602,2]
[421639840,1778004643000,-500.0,0.00012602,2]
[421639871,1778004643000,-154.90118686,0.00012602,2]
[421639875,1778004643000,-500.0,0.00012602,2]
[421639872,1778004643000,-500.0,0.00012602,2]
[421639874,1778004643000,-562.31,0.00012602,2]
[421639873,1778004643000,-500.0,0.00012602,2]
[421639877,1778004643000,-500.0,0.00012602,2]
[421639879,1778004643000,-500.0,0.00012602,2]
[421639880,1778004643000,-500.0,0.00012602,2]
[421639878,1778004643000,-500.0,0.00012602,2]
[421639881,1778004643000,-3763.43,0.00012602,2]
[421639888,1778004643000,-500.0,0.00012602,2]
[421639887,1778004643000,-500.0,0.00012602,2]
[421639882,1778004643000,-500.0,0.00012602,2]
[421639889,1778004643000,-500.0,0.00012602,2]
[421639883,1778004643000,-500.0,0.00012602,2]
[421639884,1778004643000,-525.49,0.00012602,2]
[421639886,1778004643000,-541.54,0.00012602,2]
[421639885,1778004643000,-500.0,0.00012602,2]
[421639890,1778004643000,-1416.43,0.00012602,2]
[421639892,1778004643000,-500.0,0.00012602,2]
[421639835,1778004643000,-500.0,0.00012602,2]
[421639891,1778004643000,-500.0,0.00012602,2]
[421639893,1778004643000,-500.0,0.00012602,2]
[421639895,1778004643000,-500.0,0.00012602,2]
[421639896,1778004643000,-579.77,0.00012602,2]
[421639869,1778004643000,-500.0,0.00012602,2]
[421639868,1778004643000,-500.0,0.00012602,2]
[421639894,1778004643000,-197.13403267,0.00012602,2]
[421639870,1778004643000,-596.31,0.00012602,2]
[421639876,1778004643000,-500.0,0.00012602,2]
[421639842,1778004643000,-500.0,0.00012602,2]
[421639849,1778004643000,-582.31,0.00012602,2]
[421639841,1778004643000,-500.0,0.00012602,2]
[421639847,1778004643000,-535.88477909,0.00012602,2]
[421639848,1778004643000,-255.87,0.00012602,2]
[421639845,1778004643000,-500.0,0.00012602,2]
[421639843,1778004643000,-684.89,0.00012602,2]
[421639846,1778004643000,-500.0,0.00012602,2]
[421639850,1778004643000,-500.0,0.00012602,2]
[421639863,1778004643000,-500.0,0.00012602,2]
[421639853,1778004643000,-1817.38,0.00012602,2]
[421639864,1778004643000,-621.47,0.00012602,2]
[421639851,1778004643000,-500.0,0.00012602,2]
[421639860,1778004643000,-664.36,0.00012602,2]
[421639861,1778004643000,-500.0,0.00012602,2]
[421639865,1778004643000,-3424.85,0.00012602,2]
[421639866,1778004643000,-500.0,0.00012602,2]
[421639859,1778004643000,-1128.81,0.00012602,2]
[421639862,1778004643000,-500.0,0.00012602,2]
[421639867,1778004643000,-500.0,0.00012602,2]
[421639858,1778004643000,-1469.66,0.00012602,2]
[421639855,1778004643000,-618.14,0.00012602,2]
[421639856,1778004643000,-758.02,0.00012602,2]
[421639854,1778004643000,-928.84,0.00012602,2]
[421639852,1778004643000,-500.0,0.00012602,2]
[421639857,1778004643000,-2054.52,0.00012602,2]
[421639916,1778004644000,-500.0,0.00012602,2]
[421639921,1778004644000,-500.0,0.00012602,2]
[421639920,1778004644000,-600.47126299,0.00012602,2]
[421639924,1778004644000,-565.55,0.00012602,2]
[421639925,1778004644000,-10677.96,0.00012602,2]
[421639922,1778004644000,-507.11,0.00012602,2]
[421639928,1778004644000,-500.0,0.00012602,2]
[421639938,1778004644000,-3053.02,0.00012602,2]
[421639927,1778004644000,-500.0,0.00012602,2]
[421639929,1778004644000,-9221.94,0.00012602,2]
[421639932,1778004644000,-523.35,0.00012602,2]
[421639934,1778004644000,-500.0,0.00012602,2]
[421639937,1778004644000,-1709.65,0.00012602,2]
[421639933,1778004644000,-6107.05,0.00012602,2]
[421639936,1778004644000,-500.0,0.00012602,2]
[421639931,1778004644000,-1000.0,0.00012602,2]
[421639935,1778004644000,-500.0,0.00012602,2]
[421639941,1778004644000,-2915.36,0.00012602,2]
[421639942,1778004644000,-500.0,0.00012602,2]
[421639917,1778004644000,-500.0,0.00012602,2]
[421639930,1778004644000,-500.0,0.00012602,2]
[421639926,1778004644000,-500.0,0.00012602,2]
[421639914,1778004644000,-500.0,0.00012602,2]
[421639919,1778004644000,-2259.04,0.00012602,2]
[421639940,1778004644000,-563.91,0.00012602,2]
[421639901,1778004644000,-658.86,0.00012602,2]
[421639898,1778004644000,-1498.92,0.00012602,2]
[421639899,1778004644000,-500.0,0.00012602,2]
[421639897,1778004644000,-643.42,0.00012602,2]
[421639900,1778004644000,-500.0,0.00012602,2]
[421639903,1778004644000,-500.0,0.00012602,2]
[421639913,1778004644000,-579.84,0.00012602,2]
[421639902,1778004644000,-500.0,0.00012602,2]
[421639918,1778004644000,-1783.56,0.00012602,2]
[421639904,1778004644000,-585.46097377,0.00012602,2]
[421639905,1778004644000,-500.0,0.00012602,2]
[421639907,1778004644000,-500.0,0.00012602,2]
[421639911,1778004644000,-500.0,0.00012602,2]
[421639912,1778004644000,-3762.42,0.00012602,2]
[421639910,1778004644000,-500.0,0.00012602,2]
[421639908,1778004644000,-1218.98,0.00012602,2]
[421639909,1778004644000,-759.23,0.00012602,2]
[421639915,1778004644000,-500.0,0.00012602,2]
[421639923,1778004644000,-500.0,0.00012602,2]
[421639906,1778004644000,-500.0,0.00012602,2]
[421639951,1778004644000,-627.75,0.00012602,2]
[421639939,1778004644000,-500.0,0.00012602,2]
[421639952,1778004644000,-500.0,0.00012602,2]
[421639972,1778004644000,-545.06,0.00012602,2]
[421639973,1778004644000,-500.0,0.00012602,2]
[421639974,1778004644000,-500.0,0.00012602,2]
[421639971,1778004644000,-1591.77,0.00012602,2]
[421639975,1778004644000,-695.77,0.00012602,2]
[421639969,1778004644000,-500.0,0.00012602,2]
[421639978,1778004644000,-537.16,0.00012602,2]
[421639980,1778004644000,-517.28,0.00012602,2]
[421639976,1778004644000,-3950.54,0.00012602,2]
[421639979,1778004644000,-500.0,0.00012602,2]
[421639982,1778004644000,-500.0,0.00012602,2]
[421639981,1778004644000,-179.20845238,0.00012602,2]
[421639983,1778004644000,-500.0,0.00012602,2]
[421639984,1778004644000,-598.24362444,0.00012602,2]
[421639985,1778004644000,-5789.18637556,0.00012602,2]
[421639986,1778004644000,-624.92856599,0.00012602,2]
[421639988,1778004644000,-3128.39,0.00012602,2]
[421639987,1778004644000,-500.0,0.00012602,2]
[421639989,1778004644000,-500.0,0.00012602,2]
[421639991,1778004644000,-500.0,0.00012602,2]
[421639943,1778004644000,-500.0,0.00012602,2]
[421639968,1778004644000,-500.0,0.00012602,2]
[421639970,1778004644000,-3652.63,0.00012602,2]
[421639977,1778004644000,-1084.0,0.00012602,2]
[421639961,1778004644000,-500.0,0.00012602,2]
[421639948,1778004644000,-4422.23,0.00012602,2]
[421639963,1778004644000,-832.65,0.00012602,2]
[421639953,1778004644000,-500.0,0.00012602,2]
[421639949,1778004644000,-619.61795084,0.00012602,2]
[421639945,1778004644000,-500.0,0.00012602,2]
[421639950,1778004644000,-516.27,0.00012602,2]
[421639944,1778004644000,-500.0,0.00012602,2]
[421639947,1778004644000,-733.54,0.00012602,2]
[421639966,1778004644000,-604.08215858,0.00012602,2]
[421639955,1778004644000,-500.0,0.00012602,2]
[421639954,1778004644000,-999.31,0.00012602,2]
[421639946,1778004644000,-500.0,0.00012602,2]
[421639965,1778004644000,-926.36,0.00012602,2]
[421639990,1778004644000,-1019.79,0.00012602,2]
[421639960,1778004644000,-500.0,0.00012602,2]
[421639959,1778004644000,-622.95,0.00012602,2]
[421639958,1778004644000,-788.66,0.00012602,2]
[421639962,1778004644000,-500.0,0.00012602,2]
[421639957,1778004644000,-500.0,0.00012602,2]
[421639967,1778004644000,-500.0,0.00012602,2]
[421639964,1778004644000,-500.0,0.00012602,2]
[421639956,1778004644000,-3004.92,0.00012602,2]
[421639996,1778004645000,-557.40995392,0.00012602,2]
[421639992,1778004645000,-2975.7,0.00012602,2]
[421639995,1778004645000,-500.0,0.00012602,2]
[421639994,1778004645000,-2826.07,0.00012602,2]
[421639993,1778004645000,-585.69363593,0.00012602,2]
[421639998,1778004645000,-2518.16,0.00012602,2]
[421639999,1778004645000,-328.43443338,0.00012602,2]
[421640003,1778004645000,-383.015,0.00012328,2]
[421640006,1778004645000,-1303.68,0.00012602,2]
[421640008,1778004645000,-210.18943338,0.00012602,2]
[421640005,1778004645000,-171.56556662,0.00012602,2]
[421640004,1778004645000,-116.985,0.00012328,2]
[421640007,1778004645000,-500.0,0.00012602,2]
[421640010,1778004645000,-446.0,0.00012602,2]
[421639997,1778004645000,-1145.68004608,0.00012602,2]
[421640019,1778004646000,-578.09377708,0.00012602,2]
[421640013,1778004646000,-1257.42635663,0.00012602,2]
[421640015,1778004646000,-500.0,0.00012602,2]
[421640016,1778004646000,-3424.32622292,0.00012602,2]
[421640014,1778004646000,-1217.67420999,0.00012602,2]
[421640020,1778004646000,-531.26,0.00012602,2]
[421640023,1778004646000,-5625.13438676,0.00012602,2]
[421640025,1778004646000,-682.8,0.00012602,2]
[421640022,1778004646000,-3564.11561324,0.00012602,2]
[421640024,1778004646000,-500.0,0.00012602,2]
[421640026,1778004646000,-1864.6439181,0.00012602,2]
[421640021,1778004646000,-500.0,0.00012602,2]
[421640027,1778004646000,-494.293216,0.00012602,2]
[421640029,1778004646000,-351.92062858,0.00012602,2]
[421640046,1778005488000,379.09690953,0.00020822,120]
[421640165,1778005831000,-575.0,0.00011021,2]
[421640167,1778005831000,-174.30807725,0.00011021,2]
[421640170,1778005832000,-225.26165251,0.00011021,2]
[421640171,1778005832000,-1323.14486466,0.00011021,2]
[421640179,1778005832000,-543.54471864,0.00011021,2]
[421640181,1778005832000,-200.0,0.00011699,2]
[421640183,1778005832000,-200.0,0.00011699,2]
[421640185,1778005832000,-127.91328136,0.00011699,2]
[421640299,1778005838000,-225.58387787,0.00012227,2]
[421640300,1778005838000,-500.0,0.00012227,2]
[421640296,1778005838000,-500.0,0.00012227,2]
[421640307,1778005838000,-605.15711442,0.00012227,2]
[421640297,1778005838000,-500.0,0.00012227,2]
[421640306,1778005838000,-265.38884986,0.00012227,2]
[421640305,1778005838000,-500.0,0.00012227,2]
[421640302,1778005838000,-500.0,0.00012227,2]
[421640301,1778005838000,-500.0,0.00012227,2]
[421640304,1778005838000,-500.0,0.00012227,2]
[421640314,1778005838000,-500.0,0.00012227,2]
[421640308,1778005838000,-358.85816177,0.00012227,2]
[421640311,1778005838000,-500.0,0.00012227,2]
[421640310,1778005838000,-500.0,0.00012227,2]
[421640312,1778005838000,-500.0,0.00012227,2]
[421640313,1778005838000,-500.0,0.00012227,2]
[421640309,1778005838000,-500.0,0.00012227,2]
[421640298,1778005838000,-500.0,0.00012227,2]
[421640319,1778005838000,-500.0,0.00012227,2]
[421640318,1778005838000,-500.0,0.00012227,2]
[421640316,1778005838000,-500.0,0.00012227,2]
[421640317,1778005838000,-500.0,0.00012227,2]
[421640303,1778005838000,-500.0,0.00012227,2]
[421640295,1778005838000,-455.24734367,0.00012227,2]
[421640286,1778005838000,-388.3869658,0.00012227,2]
[421640292,1778005838000,-500.0,0.00012227,2]
[421640315,1778005838000,-500.0,0.00012227,2]
[421640262,1778005838000,-300.0,0.00011965,2]
[421640268,1778005838000,-5895.8656287,0.00012066,2]
[421640264,1778005838000,-1177.8415112,0.00011966,2]
[421640276,1778005838000,-273.92447054,0.000121,2]
[421640274,1778005838000,-7256.31661073,0.000121,2]
[421640272,1778005838000,-7071.59995949,0.000121,2]
[421640270,1778005838000,-6576.09111967,0.000121,2]
[421640279,1778005838000,-473.24952557,0.000121,2]
[421640278,1778005838000,-525.03276443,0.000121,2]
[421640290,1778005838000,-500.0,0.00012227,2]
[421640282,1778005838000,-160.0,0.00012177,2]
[421640281,1778005838000,-161.56332863,0.00012177,2]
[421640284,1778005838000,-160.0,0.0001218,2]
[421640283,1778005838000,-160.0,0.0001218,2]
[421640294,1778005838000,-500.0,0.00012227,2]
[421640285,1778005838000,-500.0,0.00012227,2]
[421640287,1778005838000,-500.0,0.00012227,2]
[421640293,1778005838000,-500.0,0.00012227,2]
[421640291,1778005838000,-245.52879096,0.00012227,2]
[421640288,1778005838000,-500.0,0.00012227,2]
[421640289,1778005838000,-500.0,0.00012227,2]
[421640280,1778005838000,-513.63002035,0.000121,2]